Cogmind - Beta 15 @@@ ROGUE MODE // 2025.08.07 @ 21:32:55 Player: Bohntron Result: Destroyed by G-50 Soldier with Heavy Laser Performance ------------- Evolutions (4) 2000 Regions Visited (5) 1000 Robots Destroyed (46) 230 Value Destroyed (1502) 1502 Prototype IDs (3) 60 Alien Tech Used (0) 0 Bonus (0) 0 TOTAL SCORE: 4792 Bonus ------- None Cogmind --------- Core Integrity 0/850 Matter 123/300 Energy 160/160 System Corruption 6% Temperature Cool (9) Movement Core (150) Ox2 Location -6/Factory Parts ------- > --- POWER (3) -------- Light Fission Core > --- PROPULSION (4) --- (None) > --- UTILITY (6) ------ Advanced Visual Processing Unit System Shield System Restoration Module > --- WEAPON (2) ------- (None) > --- INVENTORY (5) ---- Improved Signal Interpreter Improved Particle Charger Advanced ECM Suite Heavy Ion Cannon Peak State ------------ > --- POWER ------------ Micro Nuclear Core Light Angular Momentum Engine Light Fission Core > --- PROPULSION ------- Armored Huge Wheel Armored Huge Wheel > --- UTILITY ---------- Medium Storage Unit Advanced Visual Processing Unit Advanced Terrain Scanner Advanced ECM Suite Hardened Medium Armor Plating System Shield > --- WEAPON ----------- EM Pulse Cannon Compact Ion Cannon > --- INVENTORY -------- Improved Heat Sink Improved Signal Interpreter Recoil Stabilizer Improved Light Armor Plating Shock Absorption System Shield Generator Recalibrator EM Pulse Cannon Heavy Mace [Rating: 60] Favorites ----------- Power Light Nuclear Core Engine Improved Deuterium Engine Power Core Light Nuclear Core Propulsion Armored Huge Wheel Treads Armored Treads Leg Carbon-fiber Leg Wheel Armored Huge Wheel Hover Unit Improved Hover Unit Flight Unit VTOL Module Utility System Shield Device Advanced Terrain Scanner Storage Medium Storage Unit Processor Advanced Visual Processing Unit Hackware System Shield Protection Hardened Medium Armor Plating Weapon Heavy Mace Energy Gun Medium Laser Energy Cannon EM Pulse Cannon Ballistic Gun Heavy Machine Gun Ballistic Cannon Flak Cannon Launcher Missile Launcher Impact Weapon Heavy Mace Build | -11 -10 -9 -8 -7 -6 ------- Run | Yrd Mat Mat Mat Fac Fac Slots Evolved 8 | . . 2 2 2 2 Power 2 | . . . 1 . 1 Propulsion 2 | . . . 1 . 1 Utility 4 | . . 2 . 2 . Weapon . | . . . . . . Parts Attached 71 | 5 1 17 16 10 22 Power 17 | 1 1 1 5 2 7 Engine 11 | 1 1 1 4 1 3 Core 6 | . . . 1 1 4 Reactor . | . . . . . . Propulsion 15 | 2 . 6 1 3 3 Treads 2 | . . . 1 1 . Leg 1 | . . . . . 1 Wheel 6 | 2 . . . 2 2 Hover 4 | . . 4 . . . Flight 2 | . . 2 . . . Utility 23 | . . 7 7 3 6 Device 10 | . . 3 . 2 5 Storage 4 | . . 2 2 . . Processor 2 | . . . 1 1 . Hackware 2 | . . . 2 . . Protection 5 | . . 2 2 . 1 Artifact . | . . . . . . Weapon 16 | 2 . 3 3 2 6 Energy Gun 5 | 2 . 1 . . 2 Energy Cannon 3 | . . . . 1 2 Ballistic Gun 1 | . . . . . 1 Ballistic Cannon 4 | . . 2 1 1 . Launcher 1 | . . . 1 . . Special Weapon . | . . . . . . Impact Weapon 2 | . . . 1 . 1 Slashing Weapon . | . . . . . . Piercing Weapon . | . . . . . . Special Melee Weapon . | . . . . . . Unidentified Prototypes 3 | . . 1 1 . 1 Parts Lost 33 | . 1 1 10 . 21 Power 8 | . 1 1 1 . 5 Propulsion 6 | . . . 2 . 4 Utility 12 | . . . 4 . 8 Weapon 7 | . . . 3 . 4 Highest Loss Streak 12 | . 1 1 9 . 12 To Critical Strikes . | . . . . . . Average Backups 6 | . 2 4 6 6 6 Power . | . . . . . . Propulsion 1 | . 2 3 2 1 . Utility 3 | . . . 2 3 6 Weapon . | . . . 1 . . Tool/Special . | . . . . . . Unused Backups 24 | . 1 6 6 2 9 Power . | . . . . . . Propulsion 7 | . . 4 2 1 . Utility 12 | . . 1 2 1 8 Weapon 5 | . 1 1 2 . 1 Tool/Special . | . . . . . . Average Slot Usage (%) 77 | . 71 89 79 86 71 Engine 10 | . 14 11 14 9 7 Core 4 | . . . 1 4 7 Treads 1 | . . . 2 9 . Wheel 5 | . 28 . . 2 9 Hover 5 | . . 21 12 . . Device 10 | . . 14 8 15 11 Storage 7 | . . 15 9 7 5 Processor 3 | . . . 1 6 6 Hackware 5 | . . . 6 7 6 Protection 6 | . . 4 8 7 4 Energy Gun 2 | . 28 17 . . . Energy Cannon 2 | . . . . 2 4 Ballistic Cannon 4 | . . 4 12 1 . Impact Weapon 3 | . . . 1 7 4 Peak Build Rating 60 | 5 5 24 28 43 60 Average Rating 31 | 3 4 13 22 35 42 On Entrance 15 | . 5 5 22 21 41 Naked Turns . | . . . . . . Heaviest Build 56 | 7 9 29 47 46 56 Greatest Support 56 | 20 20 14 20 48 56 Greatest Overweight (x) 10 | . . 4 10 1 6 Average Overweight (x) . | . . 1 1 . . Largest Inventory Capacity 15 | 5 5 8 15 10 10 Average Capacity 8 | 5 5 7 8 10 9 Most Carried 10 | 4 4 8 8 10 10 Average Carried 6 | . 2 4 6 6 6 Final Capacity 10 | 5 5 8 10 10 5 Final Carried 6 | 4 4 4 6 6 4 Class Distribution -------------------- 84% | Mutant 15% | Scavenger-Mutant Dominant Class ---------------- Mutant | -10/Materials Mutant | -9/Materials Mutant | -8/Materials Mutant | -7/Factory Mutant | -6/Factory Resources | -11 -10 -9 -8 -7 -6 ----------- Run | Yrd Mat Mat Mat Fac Fac Matter Collected 1384 | 250 . 120 503 . 511 Remotely . | . . . . . . Salvage Created 2010 | 40 49 236 409 . 1276 Parts 86 | 3 2 12 31 . 38 Haulers Intercepted . | . . . . . . Recyclers Shooed 1 | . . . 1 . . Parts Field Recycled . | . . . . . . Retrieved Matter . | . . . . . . Parts Self-Destructed . | . . . . . . Prevented . | . . . . . . Kills | -11 -10 -9 -8 -7 -6 ------- Run | Yrd Mat Mat Mat Fac Fac Combat Hostiles Destroyed 30 | 1 1 3 12 . 13 Melee 5 | . . . . . 5 Guns 7 | 1 1 3 . . 2 Cannons 8 | . . . 6 . 2 AOE 5 | . . . 5 . . Classes Destroyed 11 | 1 . 4 3 . 3 Worker 4 | . . . 1 . 3 Builder 3 | . . 1 2 . . Tunneler 1 | . . 1 . . . Recycler 5 | . . 1 1 . 3 Operator 1 | . . . 1 . . Watcher 2 | . . . . . 2 Swarmer 3 | . . . 3 . . Grunt 16 | 1 1 1 6 . 7 Brawler 1 | . . . . . 1 Sentry 6 | . . 2 3 . 1 Programmer 4 | . . . . . 4 Best Kill Streak 4 | 1 1 3 4 . 4 Combat Bots Only 4 | 1 1 2 4 . 4 Max Kills in Single Turn 3 | 1 1 1 3 . 1 Gunslinging . | . . . . . . Exploded 3 | . . . 3 . . Melee 1 | . . . . . 1 Uniques/NPCs Destroyed . | . . . . . . Combat | -11 -10 -9 -8 -7 -6 -------- Run | Yrd Mat Mat Mat Fac Fac Hostile Shots Fired 445 | 2 29 16 130 . 268 Missed 123 | 1 9 6 37 . 70 Hits 322 | 1 20 10 93 . 198 Projectile 322 | 1 20 10 93 . 198 Critical Strikes 13 | . . 1 4 . 8 Part Disruptions 3 | . . . . . 3 Damage Taken 5017 | 12 190 144 1330 26 3315 Core 1159 | . 35 14 259 . 851 Absorbed by Shields 129 | . . . . . 129 Ignored by Resistances 4 | . . . 4 . . Core Remaining (%) 86 | 100 86 96 52 100 . Volleys Fired 109 | 2 10 13 32 . 52 Largest 2 | 2 2 2 2 . 2 Hottest 126 | 100 100 115 74 . 126 Shots Fired 173 | 4 20 26 61 . 62 Gun 81 | 4 20 26 . . 31 Cannon 84 | . . . 53 . 31 Launcher 8 | . . . 8 . . Special . | . . . . . . Kinetic 75 | . . . 53 . 22 Thermal 52 | 4 20 26 . . 2 Explosive 8 | . . . 8 . . Electromagnetic 38 | . . . . . 38 Robot Hit Streak 14 | 1 4 14 7 . 13 Robot Miss Streak 6 | 2 2 1 6 . 3 Penetration Max . | . . . . . . Secondary Targets . | . . . . . . Shots Hit Robots 147 | 2 9 18 39 . 79 Core Hits 80 | 2 2 10 36 . 30 Critical Kills 2 | . . . . . 2 Critical Parts Destroyed 7 | . . . . . 7 Critical Strikes 14 | . 2 1 2 . 9 Burn 3 | . 2 1 . . . Blast 2 | . . . 2 . . Smash 9 | . . . . . 9 Melee Attacks 43 | . . . 5 . 38 Impact 43 | . . . 5 . 38 Slashing . | . . . . . . Piercing . | . . . . . . Sneak Attacks 3 | . . . . . 3 Combat Hostiles . | . . . . . . Follow-up Attacks . | . . . . . . Damage Inflicted 3998 | 25 114 257 1273 . 2329 Guns 862 | 25 114 257 . . 466 Cannons 1089 | . . . 709 . 380 Explosions 417 | . . . 417 . . Melee 1622 | . . . 147 . 1475 Ramming 8 | . . . . . 8 Kinetic 1048 | . . . 709 . 339 Thermal 433 | 25 114 257 . . 37 Explosive 417 | . . . 417 . . Electromagnetic 470 | . . . . . 470 Impact 1622 | . . . 147 . 1475 Slashing . | . . . . . . Piercing . | . . . . . . Highest Corruption 8 | . . . . 1 8 Average Corruption 4 | . . . . 1 5 Corruption Purged 2 | . . . . . 2 Corruption Blocked . | . . . . . . Effects 28 | . . . . . 28 Message Errors 6 | . . . . . 6 Matter Fused 5 | . . . . . 5 Heat Flow Errors 3 | . . . . . 3 Energy Discharges 4 | . . . . . 4 Parts Rejected 1 | . . . . . 1 Data Loss (minor) 4 | . . . . . 4 Data Loss (major) 2 | . . . . . 2 Misfires 1 | . . . . . 1 Alerts 2 | . . . . . 2 Overload Shots . | . . . . . . Overflow Damage 543 | . . . 19 . 524 Projectiles 7 | . . . . . 7 Explosions . | . . . . . . Melee 536 | . . . 19 . 517 Knockbacks 25 | . . . 15 . 10 Impact 8 | . . . . . 8 Kinetic 15 | . . . 15 . . Secondary 2 | . . . . . 2 Self-Inflicted Damage . | . . . . . . Shots . | . . . . . . Rammed 1 | . . . . . 1 Targets Rammed 3 | . . . . . 3 Kicked 2 | . . . . . 2 Crushed . | . . . . . . Highest Temperature 456 | 84 194 232 231 . 456 Average Temperature 96 | 43 92 74 71 . 140 Received Heat Transfer 1998 | 6 66 54 639 . 1233 Effects 7 | . . . . . 7 Shutdowns 6 | . . . . . 6 Interference 1 | . . . . . 1 Siege Activations . | . . . . . . Martial Activations . | . . . . . . Shielding Activations . | . . . . . . Robots Disrupted . | . . . . . . Combat Hostiles . | . . . . . . Robots Corrupted 7 | . . . 1 . 6 Combat Hostiles 5 | . . . 1 . 4 Parts Fried 11 | . . . . . 11 Impact Corruptions 18 | . . . 1 . 17 Robots Melted . | . . . . . . Combat Hostiles . | . . . . . . Parts Melted . | . . . . . . Heat Transferred 1406 | 74 481 777 . . 74 Parts Sabotaged . | . . . . . . Parts Stolen . | . . . . . . Parts Stripped . | . . . . . . Power Chain Reactions . | . . . . . . Alert | -11 -10 -9 -8 -7 -6 ------- Run | Yrd Mat Mat Mat Fac Fac Maximum Alert Level . | . . . . . . Low Security (%) 100 | 100 100 100 100 100 100 Level 1 . | . . . . . . Level 2 . | . . . . . . Level 3 . | . . . . . . Level 4 . | . . . . . . Level 5 . | . . . . . . High Security . | . . . . . . Max Security . | . . . . . . Peak Influence 156 | 20 30 61 131 28 156 Initial 28 | . 13 8 . 28 . Average 27 | 3 8 13 41 2 29 Influence Increases 1242 | 20 50 106 449 10 607 Destroy 0b10 Robot/C 600 | 20 20 60 240 . 260 Destroy 0b10 Robot/NC 80 | . . 15 25 . 40 Destroy Leader 174 | . . 30 70 . 74 Successful Hack 85 | . . . 37 10 38 Disable Machine 30 | . . . 15 . 15 Destroy Structure 63 | . . 1 62 . . Partial Spotted 15 | . . . . . 15 Lose Combat Pursuer 195 | . 30 . . . 165 Influence Decreases 1116 | . 50 126 387 72 481 Entered New Map 53 | . 7 12 . 34 . Time Decay 873 | . 33 104 373 38 325 Lost Part 190 | . 10 10 14 . 156 Squads Dispatched 16 | . . 1 8 2 5 Investigation 4 | . . . 2 1 1 Extermination 4 | . . . . 1 3 Reinforcement 5 | . . 1 3 . 1 Assault . | . . . . . . Garrison 3 | . . . 3 . . Intercept . | . . . . . . Searches Triggered . | . . . . . . Construction Impeded 1 | . . . 1 . . Haulers Reinforced 1 | . . . . . 1 Active Scanning Responses . | . . . . . . Cargo Convoy Interrupts . | . . . . . . Stealth | -11 -10 -9 -8 -7 -6 --------- Run | Yrd Mat Mat Mat Fac Fac Distress Signals 4 | . . . 1 . 3 Communications Jammed . | . . . . . . Distress Signals . | . . . . . . Times Spotted 89 | 1 9 4 17 . 58 Peak Tracking Total 7 | 1 6 3 4 . 7 Tactical Retreats 15 | . 1 . . . 14 Traps | -11 -10 -9 -8 -7 -6 ------- Run | Yrd Mat Mat Mat Fac Fac Traps Triggered 4 | . . . 1 1 2 Indirectly . | . . . . . . Trap Hack Attempts . | . . . . . . Triggered . | . . . . . . Disarmed . | . . . . . . Reprogrammed . | . . . . . . Reused . | . . . . . . Traps Extracted . | . . . . . . Installed . | . . . . . . Triggered . | . . . . . . Machines | -11 -10 -9 -8 -7 -6 ---------- Run | Yrd Mat Mat Mat Fac Fac Machines Disabled 2 | . . . 1 . 1 Max in Single Turn 1 | . . . 1 . 1 Machines Repaired . | . . . . . . Machines Dismantled . | . . . . . . Machines Sabotaged . | . . . . . . Overloaded Fab Kills . | . . . . . . Hacking | -11 -10 -9 -8 -7 -6 --------- Run | Yrd Mat Mat Mat Fac Fac Machines Accessed 11 | . . . 5 3 3 Terminals 10 | . . . 4 3 3 Fabricators . | . . . . . . Repair Stations . | . . . . . . Recycling Units . | . . . . . . Scanalyzers 1 | . . . 1 . . Garrison Access . | . . . . . . Total Hacks 42 | . . . 16 20 6 Successful 31 | . . . 11 14 6 Failed 7 | . . . 4 3 . Catastrophic 1 | . . . 1 . . Database Lockouts 4 | . . . 1 3 . Manual . | . . . . . . Terminals 40 | . . . 14 20 6 Fabricators . | . . . . . . Repair Stations . | . . . . . . Recycling Units . | . . . . . . Scanalyzers 2 | . . . 2 . . Garrison Access . | . . . . . . Terminal Hacks 29 | . . . 9 14 6 Record 19 | . . . 7 8 4 Alert Level 3 | . . . . 2 1 Locate Traps 2 | . . . . 1 1 Investigation Status 1 | . . . . 1 . Recall Reinforcements 1 | . . . 1 . . Hauler Manifests 1 | . . . . 1 . Zone Layout 2 | . . . 1 1 . Fabricator Hacks . | . . . . . . Repair Station Hacks . | . . . . . . Recycling Unit Hacks . | . . . . . . Scanalyzer 2 | . . . 2 . . Insert Component 1 | . . . 1 . . Analyze 1 | . . . 1 . . Garrison Access Hacks . | . . . . . . Unauthorized Hacks . | . . . . . . Terminals . | . . . . . . Fabricators . | . . . . . . Repair Stations . | . . . . . . Recycling Units . | . . . . . . Scanalyzers . | . . . . . . Garrison Access . | . . . . . . Data Cores Recovered 1 | . . . 1 . . Used . | . . . . . . Hacking Detections 7 | . . . 3 3 1 Full Trace Events 3 | . . . 2 1 . Feedback Events . | . . . . . . Feedback Blocked . | . . . . . . Robot Schematics Acquired . | . . . . . . Robots Built . | . . . . . . Authchips . | . . . . . . Time . | . . . . . . Total Robot Build Rating . | . . . . . . Part Schematics Acquired 1 | . . . 1 . . Parts Built . | . . . . . . Authchips . | . . . . . . Time . | . . . . . . Total Part Build Rating . | . . . . . . Parts Repaired . | . . . . . . Time . | . . . . . . Parts Recycled . | . . . . . . Recycled Matter . | . . . . . . Retrieved Matter . | . . . . . . Retrieved Components . | . . . . . . Parts Scanalyzed 1 | . . . 1 . . Part Schematics Acquired 1 | . . . 1 . . Parts Damaged . | . . . . . . Bothacking | -11 -10 -9 -8 -7 -6 ------------ Run | Yrd Mat Mat Mat Fac Fac Used RIF Installer . | . . . . . . Robots Hacked . | . . . . . . Non-combat . | . . . . . . Combat . | . . . . . . Robot Hacks Applied . | . . . . . . Relay Couplers Released . | . . . . . . Fabnet Peak Effective % . | . . . . . . Robots Rewired . | . . . . . . Allies Hacked . | . . . . . . Hacks Repelled . | . . . . . . Allies | -11 -10 -9 -8 -7 -6 -------- Run | Yrd Mat Mat Mat Fac Fac Total Allies . | . . . . . . Largest Group . | . . . . . . Highest-Rated Group . | . . . . . . Highest-Rated Ally . | . . . . . . Total Orders . | . . . . . . Ally Attacks . | . . . . . . Total Damage . | . . . . . . Kills . | . . . . . . Allies Corrupted . | . . . . . . Allies Melted . | . . . . . . Intel | -11 -10 -9 -8 -7 -6 ------- Run | Yrd Mat Mat Mat Fac Fac Active Infowar (turns) 3499 | . . 284 823 446 1946 Optics 2392 | . . . . 446 1946 Terrain 2309 | . . 284 823 . 1202 ECM 1109 | . . . . 176 933 Robot Analysis Total . | . . . . . . Derelict Logs Recovered . | . . . . . . Drone Launches . | . . . . . . Drone Recoveries . | . . . . . . Exploration | -11 -10 -9 -8 -7 -6 ------------- Run | Yrd Mat Mat Mat Fac Fac Turns Passed 4172 | 71 113 409 1180 447 1952 Spaces Moved 2388 | 70 98 250 540 246 1184 Core 181 | 17 . . 3 . 161 Treads 308 | . . . 127 181 . Legs 41 | . . . . . 41 Wheels 1198 | 53 98 . . 65 982 Hover 655 | . . 250 405 . . Flight 5 | . . . 5 . . Fastest Speed 50 | 50 80 56 109 110 50 Average Speed 137 | 72 80 124 187 169 118 Slowest Speed 550 | 80 80 300 550 250 350 Overloaded Moves . | . . . . . . Propulsion Burnouts . | . . . . . . Robots Hopped . | . . . . . . Potential Cave-ins . | . . . . . . Cave-ins Triggered . | . . . . . . Exploration Rate (%) 20 | 5 30 21 40 8 20 Regions Visited 5 Branch Regions . Pre-discovered Areas . | . . . . . . Known Exits Taken . | . . . . . . Unknown Exits Taken 5 | 1 1 1 1 1 . Scrap Searched . | . . . . . . Spaces Dug 1 | . . . 1 . . Terrain Destroyed 64 | . . . 64 . . Melee . | . . . . . . Projectile 10 | . . . 10 . . AOE 54 | . . . 54 . . Terrain Rammed . | . . . . . . Walls Destroyed . | . . . . . . Machines Disabled . | . . . . . . Actions | -11 -10 -9 -8 -7 -6 --------- Run | Yrd Mat Mat Mat Fac Fac Total 3048 | 85 113 325 642 279 1604 Wait 242 | . . . 5 . 237 Move 2383 | 69 97 249 539 245 1184 Hop . | . . . . . . Pick Up 100 | 9 3 24 25 13 26 Fast Attach . | . . . . . . Attach 55 | 5 1 7 12 7 23 Detach 9 | . . 1 2 1 5 Swap 40 | . . 12 9 4 15 Drop 57 | . 2 19 13 9 14 Fire 109 | 2 10 13 32 . 52 Melee 42 | . . . 5 . 37 Ram 1 | . . . . . 1 Kick 2 | . . . . . 2 Crush . | . . . . . . Escape Stasis 8 | . . . . . 8 Rewire . | . . . . . . Trap . | . . . . . . Miscellaneous . | . . . . . . Route ------- -11/Scrapyard -10/Materials -9/Materials -8/Materials (discovered 2 exits: *Fac / [*Sto]) -7/Factory -6/Factory History --------- Turn | Location | Event 2 | -11/Scrapyard | Met Revision 17 52 | -11/Scrapyard | Discovered new exit (range 8) 72 | -11/Scrapyard | Entered Materials 180 | -10/Materials | Discovered new exit (range 7) 185 | -10/Materials | Entered another Materials area 185 | -9/Materials | Evolved 2 slots: Utility x2 306 | -9/Materials | Build established: Mutant 520 | -9/Materials | Discovered new exit (range 14) 594 | -9/Materials | Entered another Materials area 594 | -8/Materials | Evolved 2 slots: Power x1, Propulsion x1 760 | -8/Materials | Garrison activated, responded to threat 783 | -8/Materials | Central database locked down 987 | -8/Materials | Build established: Scavenger-Mutant 1314 | -8/Materials | Discovered new exit (range 15) 1448 | -8/Materials | Lost 9 parts (1p2n4u2w) 1553 | -8/Materials | Build established: Mutant 1678 | -8/Materials | Discovered new exit (range 9) 1774 | -8/Materials | Entered Factory 1774 | -7/Factory | Evolved 2 slots: Utility x2 1943 | -7/Factory | Central database locked down 1943 | -7/Factory | Central database locked down 1943 | -7/Factory | Central database locked down 2194 | -7/Factory | Discovered new exit (range 5) 2221 | -7/Factory | Entered another Factory area 2221 | -6/Factory | Evolved 2 slots: Power x1, Propulsion x1 3474 | -6/Factory | Lost 3 parts (2p1u) 3760 | -6/Factory | Core integrity fell below 50% 3784 | -6/Factory | Lost 12 parts (3p3n3u3w) 3857 | -6/Factory | Core integrity fell below 20% 4173 | -6/Factory | Destroyed by G-50 Soldier with Heavy Laser Last Messages --------------- ALERT: Hostile activity reported, dispatching reinforcements to area. K-01 Serf cleans the Neutrino Reactor. Destroyed Med. Matter Pod. >7ZUQFDCINUZ7ITESWKMAXB:ES=O System Restoration Module purges 1% system corruption (7%). K-01 Serf destroyed. K-01 Serf cleans the Neutrino Reactor. System Restoration Module purges 1% system corruption (6%). K-01 Serf collects debris. System corrupted: Component data lost. Connecting with Terminal... K-01 Serf collects debris. K-01 Serf cleans the Neutrino Reactor. Hvy. Machine Gun destroyed. Critical hit (Burn: +37). System corrupted: Matter fused (-5). Shock Absorption System destroyed. Map ----- +----------------------------------------------------+ | ??????????????????##########/###?????????# #???? | | ??????????????????# #?????????# #???? | | ??????????????????# """ """ #?????????# ???? | | ??????????????????# """ """ #?????????# ??? | | ??????????????????# """ """ #?????????# """ ?? | | ??????????????????# ! #?????????# """ ? | | ??????????????????# """ """ #?????????# """ | | ??????????????????# """ """ #?????????+ | | ??????????????????# """ """ #?????????# """ | | ??????????????????# #?????????# """ | | ??????????????????# / ########### """ | | ??????????????????# + | | ??????????????????# # | | ??????????????########/######### !! | | ??????????? ! | | ??????????? #### ################ | | ??????????? ????# #?????????????????? | | ??????????????? ?????# #?????????????????? | | ????????????? ?????# #?????????????????? | | ????????????##########+####??# #????###########??? | | ??????????????# #??# #????# #??? | | ??????????????# """%""" #??# #????# """ #??? | | ??????????????# """ """ #??# ###### """ #??? | | ??????????????# """ """ #??# + "S #??? | | ??????????????# #??# ### """ """ #??? | | ??????????????# """ """ @#### #?# "" """ #??? | | ??????????????# """ """ + #?# """ #??? | | ??????????????#] """ """g # #?# #??? | | ??????????????# g # ########+##### # | | ??????????????# "" """ %+ ^ # | | ??????????????# "T """ ################+#####+# | | ??????????????# "" """ #????????????# # | | ??????????????# #????????????# [ T" # | | ??????????????#######u#####????????????# """ # | | ????????????????????# #????????????????# # | | ???????????????????? ????????????????########### | | ??????????????????? ??????????????????????????? | | ?????????????????? ??????????????????????????? | | ?????????????????? ??????????????????????????? | | ????????????????? ?????????????????????????? | | ???????????????? #####?????????????????????????? | | ??????????????? ???????????????????????????????? | | ??????????????? ???????????????????????????????? | | ?????????????? ????????????????????????????????? | | ????????????? ????????????????????????????????? | | ???????????? ?????????????????????????????????? | | ???????????? ?????????????????????????????????? | | ???????????####??????????????????????????????????? | | ?????????????????????????????????????????????????? | | ?????????????????????????????????????????????????? | +----------------------------------------------------+ Best States ------------- Heat Dissipation 51 Energy Generation 41 Energy Capacity 430 Matter Stores 300 Matter Capacity 300 Sight Range 20 Terrain Scan Range 20 Terrain Scan Density 85 ECM Strength 2 Armor Coverage 225 Resistance: EX 25 Resistance: EM 15 Evasion (%) 55 Recoil Reduction 6 Offensive Hacking 10 Defensive Hacking 10 Item Schematics ----------------- Imp. Flight Unit | -8/Materials | Scanalyzed Robot Schematics ------------------ None Fabricated ------------ Nothing Repaired ---------- Nothing Alien Tech Used ----------------- None Achievements -------------- Librarian Made in Tau Ceti IV Maximum Efficiency Novice Programmer Power Corrupts Risk Taker Serviceable Loadout Shopping List Storm Trooper Uninvited Guest Universal Adapter Challenges ------------ None Game ------ Seed GravmagSigixMatter Manual? 0 Play Time 01:16:55 Cumulative 1.4 hours Start 2025.08.07 @ 18:50:19 End 2025.08.07 @ 21:32:55 Sessions 1 Manual Loads 0 Difficulty Rogue Special Mode None Game No. 2 Rogue 2 Adventurer 0 Explorer 0 Win Type - Total 0 Types 0/0/0/0/0/0/0/0/0/0 Lore% 1 Gallery% 5 Achievement% 5 Wizard Run 0 Options --------- Layout 1 ASCII 0 Keyboard 0 Movement Vi Keybinds 0 Fullscreen 2 Font 24/Smallcaps Map View 50x35 Zoom Use 0% Tactical HUD 0 Map Filters NONE Filters NONE Steam 0 RUN: 5a5d02d5-634f-435b-a947-9852103a9c86